bitfinex/quotes_ETHUSD_20241223
["timestamp","ask_amount","ask_price","bid_price","bid_amount"]
[1734965479661,3.108155,3290.6,3288.0,0.79591094]
[1734965479876,3.04025,3289.3,3288.0,0.7655]
[1734965480089,3.04006,3289.5,3288.0,0.7655]
[1734965480296,0.03022524,3289.4,3288.0,0.7655]
[1734965480491,3.0402,3289.3,3288.0,0.7655]
[1734965480897,0.7822,3290.4,3288.1,0.03040453]
[1734965481094,3.03932,3290.2,3288.5,3.04089]
[1734965481406,0.03022524,3290.2,3288.3,0.8269]
[1734965481610,3.04071,3288.7,3287.7,0.8269]
[1734965481908,0.7619,3289.2,3287.8,0.0402084]
[1734965482124,0.7619,3289.8,3287.8,0.0402084]
[1734965482274,0.03022524,3290.1,3288.2,0.8269]
[1734965482494,3.03969,3289.8,3288.2,0.8269]
[1734965482713,0.03022524,3289.8,3288.3,0.42679613]
[1734965483002,3.04038,3289.1,3288.3,0.03998613]
[1734965483489,3.04032,3289.2,3288.3,0.03998613]
[1734965483663,3.0,3289.8,3288.3,0.03998613]
[1734965483664,3.04044,3289.0,3288.3,0.03998613]
[1734965483858,3.0,3290.3,3288.2,0.8269]
[1734965484054,3.03988,3289.6,3288.3,3.04108]
[1734965484260,3.0,3290.3,3288.3,3.04108]
[1734965484261,3.0397,3289.8,3288.4,0.43672511]
[1734965484459,3.03889,3290.7,3288.4,0.43672511]
[1734965484460,3.04,3289.5,3288.4,0.04992711]
[1734965484670,3.03981,3289.7,3288.4,0.04992711]
[1734965484902,3.03923,3290.3,3288.4,0.04992711]
[1734965485201,3.03942,3290.1,3288.4,0.04992711]
[1734965485372,0.03022524,3290.1,3288.5,0.8269]
[1734965485571,3.03951,3290.0,3288.6,0.44159672]
[1734965485777,3.03999,3289.5,3288.6,0.04981601]
[1734965485973,3.04025,3289.2,3288.5,0.8269]
[1734965486188,0.03022524,3289.1,3288.6,0.04981601]
[1734965486394,3.04071,3288.7,3288.6,0.04981601]
[1734965486603,0.03022524,3288.9,3287.9,0.7826]
[1734965486810,0.41802519,3290.2,3287.9,0.7826]
[1734965486811,6.03966,3289.9,3287.9,0.7826]
[1734965486963,3.04065,3288.8,3288.0,0.02869095]
[1734965487168,3.04065,3288.8,3287.9,0.7826]
[1734965487392,3.03988,3289.6,3287.9,0.7826]
[1734965487702,0.85382524,3289.7,3288.0,0.03100433]
[1734965487703,3.04053,3288.9,3288.0,0.03100433]
[1734965487909,0.03022524,3288.8,3288.0,0.03100433]
[1734965488057,0.03022524,3289.2,3288.0,0.03100433]
[1734965488261,3.78172524,3290.0,3287.9,0.7826]
[1734965488505,3.04024,3289.3,3287.9,3.82403]
[1734965488704,3.04035,3289.1,3287.9,3.82403]
[1734965489007,0.99293502,3289.9,3288.0,0.06141011]
[1734965489312,0.03022524,3289.8,3288.1,0.03097258]
[1734965489467,3.04044,3289.0,3288.1,0.03097258]
[1734965489662,3.04044,3289.0,3287.9,3.82404]
[1734965489864,0.03022524,3289.8,3287.9,3.82404]
[1734965489865,3.041,3288.4,3288.2,0.0288781]
[1734965490094,0.03022524,3288.7,3288.0,0.02893737]
[1734965490295,0.03022524,3289.2,3287.9,0.7826]
[1734965490800,3.04055,3288.9,3287.9,0.7826]
[1734965491004,0.03022524,3289.3,3288.0,0.03100433]
[1734965491175,3.03969,3289.8,3287.9,0.7826]
[1734965491176,3.04006,3289.4,3287.9,0.7826]
[1734965491379,3.04006,3289.4,3286.2,3.19383611]
[1734965491380,3.04182,3287.5,3287.4,0.8266]
[1734965491610,3.04149,3287.9,3287.4,0.8266]
[1734965492107,3.04155,3287.8,3286.7,3.04256]
[1734965492418,3.0,3288.5,3286.5,0.8094]
[1734965492419,0.03022524,3287.7,3286.5,0.8094]
[1734965492725,3.04182,3287.5,3286.6,0.02935245]
[1734965492882,3.04221,3287.1,3286.6,0.02935245]
[1734965493086,3.04249,3286.8,3286.6,0.02935245]
[1734965493322,3.04226,3287.1,3286.6,0.02935245]
[1734965493619,3.04265,3286.6,3286.5,0.8094]
[1734965493929,3.04319,3286.1,3285.5,0.7767]
[1734965494065,3.04292,3286.4,3285.5,0.7767]
[1734965494264,0.03022524,3287.0,3285.5,0.7767]
[1734965494514,0.7696,3287.6,3285.6,0.03110302]
[1734965494700,0.03022524,3287.5,3285.6,0.03110302]
[1734965494895,0.03022524,3287.5,3285.8,3.04334]
[1734965495085,0.03022524,3287.5,3285.6,0.03110302]
[1734965495286,3.04208,3287.3,3285.9,0.03100763]
[1734965495605,3.04259,3286.7,3285.7,0.03107122]
[1734965495804,3.04259,3286.7,3285.5,0.7767]
[1734965495979,3.07254524,3287.0,3285.5,0.7767]
[1734965496178,3.04238,3286.9,3285.7,3.04342]
[1734965496393,3.0421,3287.2,3285.8,0.33849172]
[1734965496595,3.04241,3286.9,3285.8,3.07442942]
[1734965496784,3.43277802,3287.4,3285.8,0.03103942]
[1734965496785,0.03022524,3287.3,3285.8,0.03103942]
[1734965496972,3.07228524,3287.3,3285.8,0.03103942]
[1734965497170,0.03022524,3287.3,3286.1,3.04307]
[1734965497571,0.03022524,3287.3,3286.2,0.03091226]
[1734965497770,0.30720552,3287.3,3286.2,0.03091226]
[1734965498022,3.81139,3287.6,3285.7,0.7767]
[1734965498023,0.03022524,3287.2,3285.7,0.7767]
[1734965498319,0.03022524,3287.2,3286.3,0.03088047]
[1734965498521,0.03022524,3287.5,3285.8,0.7968]
[1734965498685,3.0422,3287.1,3286.0,3.0432]
[1734965499013,0.03022524,3287.5,3285.8,0.7968]
[1734965499198,3.04191,3287.4,3285.6,0.7968]
[1734965499382,3.0421,3287.2,3285.6,3.84032]
[1734965499588,3.04257,3286.7,3285.6,3.84032]
[1734965499786,3.04241,3286.9,3285.7,3.04343]
[1734965500001,3.30721352,3287.3,3285.6,0.7968]
[1734965500002,0.03022524,3286.8,3285.6,0.7968]
[1734965500184,3.07265524,3286.9,3285.6,0.7968]
[1734965500386,3.04255,3286.8,3285.6,3.84038]
[1734965500593,0.03022524,3286.7,3285.6,0.7968]
[1734965500791,6.921305,3286.6,3284.5,0.8317]
[1734965501083,6.921305,3286.6,3284.7,3.04438]
[1734965501084,0.03022524,3286.5,3284.7,3.04438]
[1734965501282,0.03022524,3286.5,3284.5,0.8317]
[1734965501283,0.03022524,3286.5,3284.6,3.04445]
[1734965501476,0.03022524,3286.5,3284.1,0.60570779]
[1734965501477,3.0434,3285.8,3284.7,3.87609]
[1734965501679,0.03022524,3286.5,3284.8,0.387609]
[1734965501874,0.03022524,3286.5,3284.7,0.8317]
[1734965501875,0.03022524,3286.4,3284.7,0.8317]
[1734965502069,0.03022524,3286.4,3284.9,3.04422]
[1734965502294,0.7705,3286.6,3284.7,0.8317]
[1734965502515,3.04273,3286.6,3285.5,0.7825]
[1734965502724,3.04312,3286.1,3285.5,0.7825]
[1734965502921,3.04312,3286.1,3284.1,3.04496]
[1734965502922,3.04354,3285.7,3284.2,3.0]
[1734965503227,0.03022524,3285.6,3284.3,3.04478]
[1734965503380,3.04379,3285.4,3284.2,3.04488]
[1734965503579,0.03022524,3285.9,3284.1,0.7825]
[1734965503580,3.04349,3285.7,3284.1,0.7825]
[1734965503786,3.04367,3285.5,3284.1,0.7825]
[1734965503984,3.04376,3285.4,3284.1,0.7825]
[1734965504198,0.03022524,3285.5,3284.1,0.7825]
[1734965504421,0.304312,3286.0,3284.4,3.04467]
[1734965504588,0.03022524,3285.9,3284.1,0.7825]
[1734965504778,3.04387,3285.3,3284.1,3.82746]
[1734965505115,3.04399,3285.2,3284.1,0.7825]
[1734965505423,3.04321,3286.0,3284.1,0.7825]
[1734965505713,0.03022524,3285.9,3284.2,0.7934]
[1734965505916,3.04359,3285.6,3284.4,3.04468]
[1734965506085,3.07390524,3285.5,3284.3,0.7934]
[1734965506307,6.150805,3286.7,3283.9,0.1683068]
[1734965506308,3.04296,3286.3,3285.3,0.7934]
[1734965506508,0.03022524,3286.2,3285.3,0.7934]
[1734965506710,3.04329,3286.0,3285.3,0.7934]
[1734965507149,3.0434,3285.8,3285.3,0.7934]
[1734965507353,0.33754376,3286.2,3285.3,0.7934]
[1734965507655,3.04343,3285.8,3285.3,0.7934]
[1734965507947,3.04404,3285.1,3284.8,0.7934]
[1734965508100,3.04381,3285.4,3284.8,0.7934]
[1734965508300,0.03022524,3285.8,3284.8,0.7934]
[1734965508650,3.04362,3285.6,3284.8,0.7934]
[1734965508947,1.09026338,3286.1,3284.1,0.03044565]
[1734965508948,3.04393,3285.3,3284.1,0.03044565]
[1734965509255,3.04393,3285.3,3284.2,0.7934]
[1734965509599,0.33806338,3286.1,3284.2,4.222097]
[1734965509798,3.04376,3285.5,3284.3,3.04474]
[1734965510060,0.33806338,3286.1,3284.3,0.7934]
[1734965510254,0.30731852,3286.2,3285.0,0.8327]
[1734965510255,3.04344,3285.8,3285.0,0.8327]
[1734965510400,0.03022524,3286.0,3285.0,0.8327]
[1734965510598,3.07348524,3286.0,3285.0,0.8327]
[1734965510831,3.04352,3285.7,3285.0,0.8327]
[1734965511316,0.03022524,3285.9,3285.0,0.8327]
[1734965511518,3.04283,3286.5,3285.3,3.04382]
[1734965511864,0.03022524,3286.4,3285.1,3.04403]
[1734965512074,0.03022524,3286.4,3285.0,0.8327]
[1734965512237,3.04338,3285.9,3285.0,0.8327]
[1734965512832,3.04277,3286.5,3285.3,3.04377]
[1734965513030,3.04284,3286.4,3285.4,0.7673]
[1734965513251,0.03022524,3286.8,3285.4,3.81099]
[1734965513450,0.03022524,3286.8,3285.4,0.7673]
[1734965513662,3.04275,3286.6,3285.4,0.7673]
[1734965513879,3.07271524,3286.8,3285.7,3.04348]
[1734965514189,0.33749676,3286.7,3285.4,0.7673]
[1734965514354,3.04267,3286.6,3285.6,3.0435]
[1734965514552,3.04351,3285.7,3285.4,0.7673]
[1734965514774,3.04331,3285.9,3285.4,0.7673]
[1734965515084,3.0433,3285.9,3284.7,0.7518]
[1734965515283,3.04356,3285.7,3284.7,0.7518]
[1734965515496,3.04327,3286.0,3284.9,3.0442]
[1734965515786,3.04327,3286.0,3285.0,3.04411]
[1734965515984,3.04312,3286.1,3285.1,3.86686]
[1734965516131,3.04331,3285.9,3285.1,0.8229]
[1734965516951,0.03022524,3286.2,3285.1,0.8229]
[1734965517150,0.03022524,3286.5,3285.2,3.04392]
[1734965517349,0.30728752,3286.4,3285.1,3.86691]
[1734965517608,3.0431,3286.2,3285.1,3.86691]
[1734965517793,0.03022524,3286.1,3285.2,3.04393]
[1734965517935,3.04352,3285.7,3285.1,0.8229]
[1734965518134,3.04363,3285.6,3285.1,0.8229]
[1734965518678,3.04327,3286.0,3285.1,0.8229]
[1734965518996,3.04304,3286.2,3285.2,3.04394]
[1734965519278,3.04338,3285.9,3285.1,0.8229]
[1734965519440,3.04313,3286.1,3285.1,3.86688]
[1734965519633,0.30728752,3286.4,3285.1,3.86688]
[1734965519634,0.03022524,3286.0,3285.1,0.8229]
[1734965519838,3.04317,3286.1,3285.1,0.8229]
[1734965520034,3.04295,3286.3,3285.3,3.04383]
[1734965520269,0.33502375,3286.2,3285.1,0.8229]
[1734965520488,3.0433,3286.0,3285.1,0.8229]
[1734965520643,3.04302,3286.2,3285.1,3.86687]
[1734965520837,0.03022524,3286.5,3285.1,0.8229]
[1734965521081,0.03022524,3286.7,3285.1,0.8229]
[1734965521418,3.24022524,3286.5,3285.1,0.8229]
[1734965521535,3.04366,3285.6,3285.1,0.8229]
[1734965521950,3.04343,3285.8,3285.1,0.8229]
[1734965522182,3.04369,3285.5,3285.1,0.8229]
[1734965522384,3.04252,3286.8,3285.4,3.04369]
[1734965522586,0.03022524,3286.8,3284.6,0.7544]
[1734965522879,1.22858227,3287.8,3286.9,0.7544]
[1734965523049,3.04165,3287.7,3286.9,0.7544]
[1734965523241,0.03022524,3287.7,3286.9,0.7544]
[1734965523440,3.04173,3287.6,3286.9,0.7544]
[1734965523657,0.03022524,3287.5,3286.9,0.7544]
[1734965523942,3.04214,3287.2,3286.9,0.7544]
[1734965524176,3.04194,3287.4,3286.9,0.7544]
[1734965524338,2.44607227,3288.2,3286.9,0.7544]
[1734965524552,1.22858227,3288.2,3288.1,3.04127]
[1734965524854,1.22858227,3288.2,3288.1,3.83177]
[1734965525208,1.22858227,3289.0,3288.1,1.173677]
[1734965525494,1.22858227,3289.0,3288.9,3.04053]
[1734965525785,1.24572567,3289.3,3289.1,3.0]
[1734965525994,1.29419851,3289.5,3289.4,6.80526]
[1734965526158,0.29090965,3289.5,3289.4,6.22846]
[1734965526346,3.67365915,3289.8,3289.7,6.03979]
[1734965526550,4.46652203,3290.7,3290.6,3.03895]
[1734965526749,0.46662203,3290.7,3290.6,9.147105]
[1734965526965,9.11297073,3292.5,3291.5,3.03812]
[1734965527152,3.66617258,3292.6,3291.1,3.108155]
[1734965527379,3.66617258,3292.6,3291.9,3.03775]
[1734965527578,3.66617258,3292.6,3291.7,3.108155]
[1734965527762,3.66617258,3292.6,3292.5,3.0372]
[1734965528290,3.66617258,3292.6,3292.5,3.34092]
[1734965528905,3.0355,3294.4,3293.0,3.03673]
[1734965529101,3.03561,3294.3,3292.6,0.03036313]
[1734965529309,3.03561,3294.3,3292.9,3.03682]
[1734965529516,3.03573,3294.1,3292.7,3.03702]
[1734965529658,0.7608,3294.1,3292.8,0.03036105]
[1734965529862,3.03608,3293.8,3292.2,0.03036074]
[1734965530102,0.03022524,3293.7,3292.3,1.26303596]
[1734965530259,3.03677,3293.0,3292.3,1.26303596]
[1734965530604,3.03729,3292.4,3292.3,1.26303596]
[1734965530817,3.03729,3292.4,3292.0,8.73e-06]
[1734965530818,3.03757,3292.1,3292.0,8.73e-06]
[1734965530993,3.7608,3292.0,3291.9,1.64558292]
[1734965531307,4.22836554,3292.0,3291.9,1.64558292]
[1734965531515,0.79102524,3292.0,3290.1,3.03939]
[1734965531731,0.38285952,3291.9,3290.1,0.303939]
[1734965531930,0.7608,3292.0,3290.1,3.06979652]
[1734965532229,0.7608,3292.0,3289.7,3.108155]
[1734965532230,3.03822,3291.4,3290.2,0.03038652]
[1734965532383,0.03022524,3291.3,3290.0,3.03946]
[1734965532573,3.03852,3291.1,3289.7,3.108155]
[1734965532768,3.0,3292.5,3289.7,3.108155]
[1734965532769,0.03022524,3291.7,3289.7,0.03038699]
[1734965533003,6.906105,3292.6,3289.7,0.03038699]
[1734965533004,0.03022524,3292.4,3290.2,3.03931]
[1734965533174,3.79795,3292.6,3290.3,0.03038255]
[1734965533369,3.03729,3292.4,3290.2,3.108155]
[1734965533596,3.03748,3292.2,3290.5,3.03899]
[1734965533779,3.03769,3292.0,3290.5,3.03899]
[1734965533979,0.03022524,3291.9,3289.9,3.0]
[1734965534165,0.03022524,3291.9,3290.1,3.03939]
[1734965534366,3.03808,3291.6,3290.1,3.03939]
[1734965534585,3.03815,3291.5,3290.1,3.03938]
[1734965534788,3.341965,3291.5,3290.1,3.343318]
[1734965535219,0.303815,3291.5,3290.1,0.3343229]
[1734965535427,0.7608,3292.6,3290.1,0.3343229]
[1734965535428,3.03768,3292.0,3290.6,3.03894]
[1734965535611,0.03022524,3292.5,3290.3,6.03923]
[1734965535773,3.03756,3292.2,3290.7,3.03884]
[1734965536175,0.03022524,3292.1,3290.2,3.108155]
[1734965536377,0.03022524,3292.1,3289.2,0.15394381]
[1734965536378,3.03837,3291.3,3289.8,3.0]
[1734965536583,3.03834,3291.3,3290.0,3.0395]
[1734965536778,3.03834,3291.3,3289.9,0.64309834]
[1734965536779,0.7722,3291.7,3289.7,0.3228284]
[1734965536981,0.7722,3291.7,3289.2,3.108155]
[1734965536982,3.03878,3290.8,3289.4,3.04003]
[1734965537398,3.03878,3290.8,3288.8,0.25]
[1734965537399,0.03022524,3290.7,3288.7,3.108155]
[1734965537597,0.7574,3291.0,3288.2,6.17964118]
[1734965537806,0.7574,3291.0,3287.7,0.62027014]
[1734965537807,3.03939,3290.2,3288.3,3.04108]
[1734965538014,0.03022524,3290.9,3288.4,0.03039961]
[1734965538195,3.03912,3290.5,3289.1,3.04033]
[1734965538400,0.37876252,3290.8,3288.7,3.108155]
[1734965538628,3.03906,3290.5,3289.1,3.04031]
[1734965538825,0.03022524,3290.4,3288.7,3.108155]
[1734965539029,3.03923,3290.3,3288.2,3.108155]
[1734965539216,3.0403,3289.2,3287.8,3.0415]
[1734965539398,3.0403,3289.2,3287.5,3.04178]
[1734965539399,3.04064,3288.8,3287.5,3.04177]
[1734965539616,3.04036,3289.1,3287.6,3.37622457]
[1734965539830,3.03951,3290.0,3288.3,3.04101]
[1734965540141,3.03951,3290.0,3287.7,3.108155]
[1734965540142,3.03953,3290.0,3288.0,3.04133]
[1734965540357,3.04011,3289.4,3288.0,3.04133]
[1734965540508,0.03022524,3289.3,3287.7,3.108155]
[1734965540706,3.04026,3289.2,3287.8,3.3827632]
[1734965540909,3.04036,3289.1,3287.8,3.3827632]
[1734965541168,0.24999732,3293.8,3289.4,0.9]
[1734965541376,3.03823,3291.4,3290.0,3.03951]
[1734965541509,3.03823,3291.4,3289.9,3.108155]
[1734965541510,3.03775,3292.0,3289.9,3.03958]
[1734965541709,6.145115,3292.8,3288.4,3.108155]
[1734965541710,6.146005,3291.8,3288.4,3.108155]
[1734965541920,0.303775,3291.9,3288.4,3.108155]
[1734965541921,3.108155,3291.2,3288.9,3.0]
[1734965542121,0.7516,3291.6,3289.3,3.04007]
[1734965542323,3.03812,3291.5,3289.2,0.03039326]
[1734965542530,3.03812,3291.5,3289.2,3.03039326]
[1734965542754,0.378972,3291.4,3289.4,3.03999]
[1734965542953,0.378972,3291.4,3289.3,0.60706633]
[1734965543277,3.7516,3291.6,3288.4,3.108155]
[1734965543565,0.7763,3290.6,3288.5,0.03039872]
[1734965543856,0.7763,3290.6,3289.2,3.04023]
[1734965544152,3.81529,3290.6,3289.2,3.04023]
[1734965544355,0.8118,3291.2,3289.3,0.304023]
[1734965544511,3.03871,3290.9,3289.5,3.03997]
[1734965544961,0.8118,3291.2,3288.9,3.0]
[1734965545119,3.03869,3290.9,3289.6,3.03986]
[1734965545320,0.8118,3291.2,3289.6,3.03986]
[1734965545517,0.8118,3291.2,3289.2,0.03039264]
[1734965545518,0.385019,3291.1,3289.8,3.0396]
[1734965545770,3.03881,3290.8,3289.2,3.0303919]
[1734965545978,0.8118,3291.2,3289.5,3.03996]
[1734965546130,0.8118,3291.2,3289.6,3.03985]
[1734965546335,3.0386,3291.0,3289.6,3.03985]
[1734965546551,0.8118,3291.2,3289.2,3.0]
[1734965546834,0.8118,3291.2,3289.5,3.03988]
[1734965546835,3.03886,3290.8,3289.5,3.03988]
[1734965547070,3.03892,3290.7,3289.5,3.03988]
[1734965547224,0.8118,3291.2,3289.2,0.3]
[1734965547569,3.03924,3290.3,3289.2,0.3]
[1734965547773,3.03936,3290.2,3289.0,3.04037]
[1734965548072,3.8118,3291.2,3288.3,3.108155]
[1734965548249,0.7908,3289.9,3287.9,0.33827632]
[1734965548413,0.7908,3289.9,3288.0,3.04132]
[1734965548617,0.7908,3289.9,3287.3,3.108155]
[1734965548618,3.04072,3288.7,3287.4,3.04186]
[1734965548819,3.03997,3289.5,3287.5,0.304186]
[1734965549067,3.04099,3288.4,3287.5,0.304186]
[1734965549277,3.03979,3289.7,3287.0,3.04221]
[1734965549278,3.04118,3288.2,3287.0,3.04221]
[1734965549425,3.04123,3288.2,3286.8,6.150595]
[1734965549626,3.0409,3288.5,3286.9,3.04229]
[1734965549821,3.04104,3288.4,3286.8,3.108155]
[1734965550256,3.04092,3288.5,3286.9,0.03041497]
[1734965550457,3.04092,3288.5,3287.0,0.313857]
[1734965550662,3.04092,3288.5,3287.2,3.04209]
[1734965551024,0.7908,3288.8,3287.0,0.313857]
[1734965551222,3.04071,3288.7,3286.5,0.03041275]
[1734965551482,3.04168,3287.7,3286.3,3.108155]
[1734965552030,0.7908,3288.8,3286.3,3.108155]
[1734965552235,0.7908,3288.8,3285.8,6.151465]
[1734965552236,3.04173,3287.6,3285.8,6.151465]
[1734965552594,3.04219,3287.2,3285.8,3.108155]
[1734965552732,3.04229,3287.0,3285.9,0.3108155]
[1734965553082,3.04238,3286.9,3285.9,0.3108155]
[1734965553434,3.04173,3287.6,3286.0,3.04319]
[1734965553666,3.04206,3287.3,3286.0,3.04319]
[1734965554069,3.04212,3287.2,3286.0,3.04319]
[1734965554397,3.04212,3287.2,3285.5,3.04367]
[1734965554398,3.0424,3286.9,3285.5,3.04367]
[1734965554681,3.04189,3287.5,3285.3,3.108155]
[1734965554881,3.04218,3287.2,3285.3,3.108155]
[1734965555048,0.7951,3287.1,3285.3,3.108155]
[1734965555233,3.04258,3286.7,3285.3,6.151975]
[1734965555437,3.04258,3286.7,3285.4,3.6589375]
[1734965557070,0.7951,3287.1,3285.7,3.04344]
[1734965557247,3.04228,3287.0,3285.7,3.04344]
[1734965557583,0.7951,3287.1,3285.4,0.6151975]
[1734965557883,0.7951,3287.1,3285.7,3.04349]
[1734965558081,3.04229,3287.0,3285.8,0.304349]
[1734965558445,3.04238,3286.9,3285.4,3.6588875]
[1734965558638,3.04238,3286.9,3285.5,3.04365]
[1734965558946,3.04266,3286.6,3285.4,0.6151975]
[1734965559183,3.04266,3286.6,3285.5,0.67672025]
[1734965559341,3.04239,3286.9,3285.5,0.67672025]
[1734965559536,3.04242,3286.9,3285.3,3.13858511]
[1734965559768,6.04145,3288.0,3285.8,3.108155]
[1734965559769,0.7673,3287.6,3285.8,3.108155]
[1734965560170,3.0423,3287.0,3285.8,3.108155]
[1734965560380,3.0423,3287.0,3285.8,6.151515]
[1734965561338,1.217646,3287.6,3285.8,3.108155]
[1734965561707,3.04182,3287.5,3285.9,3.3541055]
[1734965562189,1.217646,3287.6,3285.8,3.108155]
[1734965562389,3.04249,3286.8,3285.8,3.108155]
[1734965562587,3.04249,3286.8,3285.5,3.04366]
[1734965563087,3.04249,3286.8,3285.3,3.108155]
[1734965563088,4.259426,3287.6,3285.8,6.151535]
[1734965563301,3.04204,3287.3,3286.0,3.04321]
[1734965563466,0.7587,3287.7,3286.1,0.304321]
[1734965563796,4.976314,3287.7,3283.7,2.11942475]
[1734965563942,4.976314,3287.7,3284.8,3.108155]
[1734965563943,0.7587,3286.5,3284.8,3.108155]
[1734965564144,3.04216,3287.2,3285.5,3.04358]
[1734965564145,3.04254,3286.8,3285.5,3.04358]
[1734965564339,3.04215,3287.2,3285.6,3.07399201]
[1734965564340,3.04246,3286.9,3285.6,3.07399201]
[1734965564559,3.80052,3287.5,3285.3,3.108155]
[1734965564758,3.0426,3286.7,3285.4,3.3545555]
[1734965564992,3.04277,3286.5,3285.4,0.3108155]
[1734965565648,0.380052,3287.4,3285.4,0.3108155]
[1734965565649,3.04255,3286.8,3285.4,0.3108155]
[1734965565845,3.0422,3287.1,3285.9,3.0433]
[1734965566096,3.0422,3287.1,3285.4,0.3108155]
[1734965566389,3.0423,3287.0,3285.5,0.34189705]
[1734965566547,3.0423,3287.0,3285.8,3.04339]
[1734965567547,3.04236,3287.0,3285.8,3.04339]
[1734965567790,3.04239,3286.9,3285.8,3.04339]
[1734965568286,2.58382856,3287.7,3285.6,3.04358]
[1734965568493,3.04191,3287.5,3285.9,3.03042715]
[1734965568660,3.04191,3287.5,3286.2,3.04294]
[1734965569063,3.04191,3287.5,3286.3,3.04292]
[1734965569448,3.04204,3287.3,3286.1,3.04311]
[1734965569967,3.04239,3286.9,3285.8,6.151535]
[1734965570158,0.75,3287.7,3285.8,3.76313218]
[1734965570360,3.04221,3287.1,3285.9,3.04321]
[1734965570754,3.04204,3287.3,3285.8,3.76313218]
[1734965571179,0.75,3287.7,3285.8,3.108155]
[1734965571393,3.04228,3287.1,3285.9,3.07372801]
[1734965571689,0.75,3287.7,3286.2,3.04301]
[1734965571887,3.04213,3287.2,3285.8,3.108155]
[1734965572073,3.04213,3287.2,3285.9,0.3108155]
[1734965572275,3.04213,3287.2,3286.2,3.04302]
[1734965572485,3.04213,3287.2,3286.0,3.04319]
[1734965572666,2.99213,3287.2,3286.1,3.04309]
[1734965573006,0.75,3287.7,3285.9,0.3108155]
[1734965573164,0.75,3287.7,3286.2,3.04294]
[1734965573165,3.04193,3287.4,3286.2,3.04294]
[1734965573492,4.259089,3287.8,3286.0,0.34189705]
[1734965573493,3.04174,3287.6,3286.5,3.0427]
[1734965573790,1.217539,3287.8,3286.3,3.108155]
[1734965573947,0.62117743,3288.7,3286.8,3.108155]
[1734965574150,3.03957,3290.0,3286.9,0.03041772]
[1734965574151,1.217277,3288.5,3286.9,0.03041772]
[1734965574376,0.8014,3287.7,3285.6,3.04349]
[1734965574567,6.25173,3287.6,3285.7,0.304349]
[1734965574771,6.25173,3287.6,3285.3,6.152005]
[1734965574772,3.04276,3286.5,3285.3,6.152005]
[1734965575026,3.21,3287.5,3285.3,3.108155]
[1734965575172,3.04201,3287.3,3285.3,3.108155]
[1734965575374,3.04295,3286.3,3285.3,3.108155]
[1734965575817,3.04219,3287.1,3285.3,3.108155]
[1734965576022,3.04247,3286.8,3285.4,0.3108155]
[1734965576191,3.0429,3286.4,3285.4,0.3108155]
[1734965576729,3.0431,3286.2,3285.4,0.3108155]
[1734965576869,0.7861,3286.6,3284.9,0.62404197]
[1734965577070,0.7861,3286.6,3285.1,3.04403]
[1734965577305,0.7861,3286.6,3284.9,0.62404197]
[1734965577306,3.04303,3286.2,3284.9,0.62404197]
[1734965577504,3.04329,3286.0,3284.8,3.108155]
[1734965577773,3.04304,3286.2,3284.9,0.6152555]
[1734965578092,3.04274,3286.6,3285.3,3.04386]
[1734965578304,3.04285,3286.4,3285.1,3.04402]
[1734965578624,3.04247,3286.8,3284.9,0.6152555]
[1734965578827,3.04316,3286.1,3285.0,0.43350192]
[1734965579012,3.04321,3286.0,3285.0,0.43350192]
[1734965579174,3.04266,3286.6,3285.0,0.43350192]
[1734965579375,0.304247,3286.7,3285.0,0.43350192]
[1734965579777,0.7861,3287.0,3285.0,0.43350192]
[1734965580090,3.04238,3286.9,3285.1,3.04402]
[1734965580301,0.7861,3287.0,3285.2,0.61869056]
[1734965580502,3.04278,3286.5,3285.2,3.66263056]
[1734965580685,3.04256,3286.8,3285.3,3.04386]
[1734965580686,3.04249,3286.8,3285.3,3.04386]
[1734965580910,0.7861,3287.0,3285.4,0.36625506]
[1734965581092,3.04252,3286.8,3285.2,3.66261056]
[1734965581274,3.04278,3286.5,3285.2,3.66261056]
[1734965581629,0.7861,3287.0,3285.2,0.61869056]
[1734965581630,3.04253,3286.8,3285.2,0.61869056]
[1734965581940,3.82843,3287.0,3285.3,3.04377]
[1734965582119,3.04277,3286.5,3285.4,0.36624606]
[1734965582308,3.04257,3286.7,3285.5,3.04366]
[1734965582629,3.04257,3286.7,3285.4,0.36624606]
[1734965582630,3.04206,3287.3,3285.4,0.36624606]
[1734965582833,3.04182,3287.6,3285.8,3.108155]
[1734965583032,0.8073,3288.1,3285.9,3.04326]
[1734965583238,3.04266,3286.6,3285.4,3.40997606]
[1734965583388,3.108155,3287.5,3284.3,3.108155]
[1734965583592,3.04321,3286.0,3284.7,3.04434]
[1734965583932,0.8277,3286.7,3284.7,3.04434]
[1734965583933,3.04301,3286.3,3284.9,1.24580001]
[1734965584136,0.8277,3286.7,3285.0,0.03043486]
[1734965584336,0.8277,3286.7,3284.9,1.24580001]
[1734965584337,3.04265,3286.6,3284.9,1.24580001]
[1734965584635,3.04301,3286.3,3284.9,1.12613701]
[1734965584839,3.87029,3286.7,3285.1,0.60447629]
[1734965584991,3.04233,3287.0,3285.8,3.04338]
[1734965585332,0.7932,3287.2,3285.6,3.04357]
[1734965585538,3.04254,3286.8,3285.7,0.304357]
[1734965585835,0.7932,3287.2,3285.7,0.304357]
[1734965586131,3.04236,3287.0,3285.7,3.65696562]
[1734965586302,0.7932,3287.2,3285.7,3.65696562]
[1734965586694,3.0424,3286.9,3285.7,3.65696562]
[1734965586891,3.04206,3287.3,3285.7,3.65696562]
[1734965586892,0.7932,3287.7,3285.7,0.61355562]
[1734965587094,0.7932,3288.4,3286.1,3.04312]
[1734965587329,0.7932,3288.4,3286.5,3.108155]
[1734965587330,3.04116,3288.3,3286.5,3.108155]
[1734965587534,3.04147,3287.9,3286.6,3.04256]
[1734965587832,3.04147,3287.9,3286.7,3.04253]
[1734965588002,3.04164,3287.7,3286.4,3.04282]